Cogmind - Beta 13 --- EXPLORER MODE // 2024.04.22 @ 01:34:24 Player: GayPredator Result: Escaped! Performance ------------- Evolutions (9) 4500 Regions Visited (15) 3000 Robots Destroyed (55) 275 Value Destroyed (1097) 1097 Prototype IDs (14) 280 Alien Tech Used (0) 0 Bonus (7646) 7646 TOTAL SCORE: 16798 Bonus ------- High Alert Combat Kills 34 Entered Garrisons 200 Entered DSFs 500 Win 3000 Win Speed 3912 Cogmind --------- Core Integrity 1340/1600 Matter 300/300 Energy 324/330 System Corruption 0% Temperature Warning (375) Movement Flying (23) Location To Epsilon Eridani Parts ------- > --- POWER (5) -------- Micro Antimatter Reactor Light Quantum Reactor Light Quantum Reactor > --- PROPULSION (10) -- Field Propulsion Drive Nuclear Pulse Array Field Propulsion Array Impulse Thruster Array Improved Q-thruster Cooled Q-thruster Cooled Q-thruster > --- UTILITY (9) ------ Triangulator Advanced Visual Processing Unit Improved Transmission Jammer ECM Suite Advanced System Shield Advanced Corruption Screen > --- WEAPON (2) ------- Lance > --- INVENTORY (5) ---- Impulse Thruster Array Advanced Quantum Shading Machine Advanced Signal Interpreter Advanced System Restoration Module Peak State ------------ > --- POWER ------------ Micro Antimatter Reactor Light Quantum Reactor Light Quantum Reactor > --- PROPULSION ------- Field Propulsion Drive Nuclear Pulse Array Impulse Thruster Field Propulsion Array Q-thruster Impulse Thruster Array Improved Q-thruster > --- UTILITY ---------- Advanced Cryofiber Web Advanced Coolant Injector Triangulator Advanced Sensor Array Improved Transmission Jammer Experimental ECM Suite Improved Remote Force Field Improved System Shield Advanced Corruption Screen > --- WEAPON ----------- Railgun Lance > --- INVENTORY -------- Nuclear Pulse Array Advanced System Restoration Module Fusion Bomb Launcher [Rating: 173] Favorites ----------- Power Micro Nuclear Core Engine Ion Engine Power Core Micro Nuclear Core Reactor Light Quantum Reactor Propulsion Xenon Bombardment Thruster Treads Advanced Treads Leg Aluminum Leg Wheel Wheel Flight Unit Xenon Bombardment Thruster Utility ECM Suite Device ECM Suite Storage Medium Storage Unit Processor Improved Signal Interpreter Hackware Hacking Suite Weapon Light Assault Rifle Energy Cannon Heavy Ion Cannon Ballistic Gun Light Assault Rifle Launcher Long-range Missile Launcher Special Weapon Plasma Cutter Impact Weapon Heavy Mace Slashing Weapon Greatsword Piercing Weapon Lance Build | -11 -10 -9 -9 -8 -7 -7 -7 -7 -6 -5 -4 -3 -2 -2 -1 ------- Run | Yrd Mat Mat Min Mat Fac Gar Fac DSF Fac Fac Fac Res Res Tes Acc Slots Evolved 19 | . 1 2 . 2 2 . . . 2 2 2 2 2 . 2 Power 4 | . . . . 1 1 . . . . 1 . 1 . . . Propulsion 8 | . 1 1 . 1 1 . . . . 1 . 1 1 . 1 Utility 7 | . . 1 . . . . . . 2 . 2 . 1 . 1 Weapon . | . . . . . . . . . . . . . . . . Parts Attached 188 | 7 14 3 1 13 31 3 1 20 10 9 8 7 11 13 37 Power 39 | 1 1 . 1 3 7 . . 1 2 2 3 2 2 5 9 Engine 12 | 1 1 . 1 3 3 . . 1 . 2 . . . . . Core 7 | . . . . . 4 . . . 2 . 1 . . . . Reactor 20 | . . . . . . . . . . . 2 2 2 5 9 Propulsion 60 | 2 7 2 . 4 9 . . 15 . 1 3 2 4 2 9 Treads 6 | . . . . . . . . 6 . . . . . . . Leg 2 | 2 . . . . . . . . . . . . . . . Wheel 5 | . 5 . . . . . . . . . . . . . . Hover . | . . . . . . . . . . . . . . . . Flight 47 | . 2 2 . 4 9 . . 9 . 1 3 2 4 2 9 Utility 61 | 2 3 1 . 2 14 3 1 1 8 5 2 2 1 5 11 Device 51 | 1 3 . . 1 14 3 1 1 6 5 2 2 1 4 7 Storage 1 | 1 . . . . . . . . . . . . . . . Processor 5 | . . 1 . 1 . . . . 1 . . . . . 2 Hackware 4 | . . . . . . . . . 1 . . . . 1 2 Protection . | . . . . . . . . . . . . . . . . Artifact . | . . . . . . . . . . . . . . . . Weapon 28 | 2 3 . . 4 1 . . 3 . 1 . 1 4 1 8 Energy Gun . | . . . . . . . . . . . . . . . . Energy Cannon 1 | . . . . . . . . 1 . . . . . . . Ballistic Gun 8 | 2 2 . . 1 . . . . . . . . . . 3 Ballistic Cannon . | . . . . . . . . . . . . . . . . Launcher 13 | . 1 . . . . . . 1 . 1 . 1 4 1 4 Special Weapon 1 | . . . . 1 . . . . . . . . . . . Impact Weapon 1 | . . . . 1 . . . . . . . . . . . Slashing Weapon 3 | . . . . 1 1 . . 1 . . . . . . . Piercing Weapon 1 | . . . . . . . . . . . . . . . 1 Special Melee Weapon . | . . . . . . . . . . . . . . . . Unidentified Prototypes 10 | . . . . . . . . . . . 1 . 2 5 2 Parts Lost 27 | . . . 2 . . . . 3 . 4 . 1 2 2 13 Power 6 | . . . 1 . . . . . . 2 . . . . 3 Propulsion 10 | . . . 1 . . . . 2 . 1 . . 1 . 5 Utility 10 | . . . . . . . . 1 . . . 1 1 2 5 Weapon 1 | . . . . . . . . . . 1 . . . . . Highest Loss Streak 7 | . . . 2 . . . . 2 . 4 . 1 1 1 7 To Critical Strikes . | . . . . . . . . . . . . . . . . Average Slot Usage (%) 83 | . 94 94 98 93 88 92 92 80 93 88 86 84 80 74 71 Engine 4 | . 12 10 10 15 4 . . 1 6 11 6 . . . . Core 5 | . . . . . 14 21 21 19 12 7 3 . . . . Reactor 5 | . . . . . . . . . . . 5 12 15 16 10 Treads 1 | . . . . . . . . 17 . . . . . . . Wheel 2 | . 20 . . . . . . . . . . . . . . Flight 28 | . 9 35 38 38 42 42 42 14 37 36 32 35 30 27 25 Device 19 | . 16 20 20 16 13 14 14 12 18 16 24 22 27 24 23 Processor 4 | . . 8 10 8 7 7 7 7 6 5 5 3 . . 2 Hackware 2 | . . . . . . . . . 6 5 5 4 4 5 3 Ballistic Gun 4 | . 24 20 20 7 . . . . . . . . . . . Slashing Weapon 1 | . . . . . 6 7 7 1 6 4 . . . . . Naked Turns . | . . . . . . . . . . . . . . . . Heaviest Build 77 | 19 19 8 10 20 32 27 26 34 27 30 49 53 61 60 77 Greatest Support 142 | 20 42 16 16 21 36 36 36 142 36 42 45 52 64 67 75 Greatest Overweight (x) 8 | 1 1 . . . . . . 8 1 . 1 1 . . 1 Average Overweight (x) . | . . . . . . . . . . . . . . . . Largest Inventory Capacity 10 | 10 10 5 5 5 5 5 5 5 5 5 5 5 5 5 5 Average Capacity 5 | 7 8 5 5 5 5 5 5 5 5 5 5 5 5 5 5 Most Carried 10 | 5 10 5 3 5 5 5 5 5 5 5 5 5 4 5 5 Average Carried 4 | 3 6 3 2 3 4 5 4 4 3 4 2 4 2 3 4 Final Capacity 10 | 10 5 5 5 5 5 5 5 5 5 5 5 5 5 5 5 Final Carried 5 | 5 5 3 2 3 5 5 5 4 4 4 3 4 3 5 5 Class Distribution -------------------- 64% | Hacker-Sprinter 20% | Hacker-Mutant 9% | Generator-Sprinter 4% | Scavenger-Sprinter Dominant Class ---------------- Hacker-Mutant | -10/Materials Scavenger-Sprinter | -9/Materials Scavenger-Sprinter | -9/Mines Hacker-Sprinter | -8/Materials Hacker-Sprinter | -7/Factory Hacker-Sprinter | -7/Garrison Hacker-Sprinter | -7/Factory Hacker-Mutant | -7/DSF Hacker-Sprinter | -6/Factory Hacker-Sprinter | -5/Factory Hacker-Sprinter | -4/Factory Hacker-Sprinter | -3/Research Generator-Sprinter | -2/Research Generator-Sprinter | -2/Testing Hacker-Sprinter | -1/Access Resources | -11 -10 -9 -9 -8 -7 -7 -7 -7 -6 -5 -4 -3 -2 -2 -1 ----------- Run | Yrd Mat Mat Min Mat Fac Gar Fac DSF Fac Fac Fac Res Res Tes Acc Matter Collected 2415 | 219 193 59 26 18 412 . 71 110 252 71 98 22 50 316 498 Remotely . | . . . . . . . . . . . . . . . . Salvage Created 2271 | 63 129 . 19 . 366 . . 567 149 353 . . . . 625 Parts 139 | 3 13 . 1 . 25 . . 30 6 23 . . . . 38 Haulers Intercepted 1 | . . . . . 1 . . . . . . . . . . Recyclers Shooed . | . . . . . . . . . . . . . . . . Parts Field Recycled . | . . . . . . . . . . . . . . . . Retrieved Matter . | . . . . . . . . . . . . . . . . Parts Self-Destructed . | . . . . . . . . . . . . . . . . Prevented . | . . . . . . . . . . . . . . . . Kills | -11 -10 -9 -9 -8 -7 -7 -7 -7 -6 -5 -4 -3 -2 -2 -1 ------- Run | Yrd Mat Mat Min Mat Fac Gar Fac DSF Fac Fac Fac Res Res Tes Acc Combat Hostiles Destroyed 16 | . 4 . . . 1 . . 7 . 3 . . . . 1 Melee 3 | . . . . . 1 . . . . 1 . . . . 1 Guns 4 | . 4 . . . . . . . . . . . . . . Cannons 1 | . . . . . . . . 1 . . . . . . . AOE 7 | . . . . . . . . 5 . 2 . . . . . Classes Destroyed 14 | 1 2 . 1 . 5 . . 3 . 1 . . . . 1 Worker 11 | . . . . . 3 . . . . 3 . . . . 5 Builder 6 | . . . . . 2 . . . . 1 . . . . 3 Tunneler 2 | . . . 1 . 1 . . . . . . . . . . Hauler 1 | . . . . . 1 . . . . . . . . . . Recycler 6 | 1 . . . . . . . . 1 2 . . . . 2 Operator 1 | . . . . . 1 . . . . . . . . . . Watcher 12 | . 3 . . . 4 . . . 1 1 . . . . 3 Swarmer 8 | . 4 . . . . . . 2 . 2 . . . . . Grunt 3 | . . . . . . . . 3 . . . . . . . Sentry 1 | . . . . . . . . . . . . . . . 1 Specialist 1 | . . . . . . . . 1 . . . . . . . Hunter 1 | . . . . . . . . . . 1 . . . . . Programmer 1 | . . . . . 1 . . . . . . . . . . Heavy 1 | . . . . . . . . 1 . . . . . . . Best Kill Streak 8 | 1 4 . 1 . 6 . . 7 1 8 . . . . 5 Combat Bots Only 7 | . 2 . . . 1 . . 7 . 2 . . . . 1 Max Kills in Single Turn 6 | 1 2 . 1 . 1 . . 1 1 6 . . . . 1 Gunslinging 1 | . 1 . . . . . . . . . . . . . . Exploded 2 | . . . . . . . . 1 . 2 . . . . . Melee 1 | . . . . . 1 . . . . 1 . . . . 1 Uniques/NPCs Destroyed . | . . . . . . . . . . . . . . . . Combat | -11 -10 -9 -9 -8 -7 -7 -7 -7 -6 -5 -4 -3 -2 -2 -1 -------- Run | Yrd Mat Mat Min Mat Fac Gar Fac DSF Fac Fac Fac Res Res Tes Acc Hostile Shots Fired 601 | . 15 17 6 2 45 . . 78 . 72 1 21 6 10 328 Missed 261 | . 3 7 . 2 21 . . 20 . 31 1 13 2 2 159 Damage Taken 3810 | . 58 73 151 . 152 . . 802 . 480 . 112 70 114 1798 Core 541 | . 15 . 61 . 52 . . 87 . 53 . 13 . . 260 Absorbed by Shields 585 | . . . . . . . . 8 . . . . . . 577 Ignored by Resistances 2617 | . 43 47 89 . 98 . . 479 . 287 . 68 41 67 1398 Regen/Repaired (Parts) 74 | . . . . 24 50 . . . . . . . . . . Core Remaining (%) 94 | 100 94 . 84 100 . . . 80 100 94 100 99 . 100 83 Volleys Fired 66 | 2 15 . 2 16 . . . 14 . 1 . 2 3 2 9 Largest 2 | 2 2 . 2 1 . . . 2 . 1 . 1 1 1 1 Hottest 101 | 40 40 . 40 20 . . . 101 . 43 . 43 43 52 80 Shots Fired 96 | 4 29 . 4 16 . . . 26 . 1 . 2 3 2 9 Gun 39 | 4 28 . 4 . . . . . . . . . . . 3 Cannon 12 | . . . . . . . . 12 . . . . . . . Launcher 29 | . 1 . . . . . . 14 . 1 . 2 3 2 6 Special 16 | . . . . 16 . . . . . . . . . . . Kinetic 39 | 4 28 . 4 . . . . . . . . . . . 3 Thermal 28 | . . . . 16 . . . 12 . . . . . . . Explosive 14 | . 1 . . . . . . . . 1 . 2 3 2 5 Electromagnetic 15 | . . . . . . . . 14 . . . . . . 1 Robot Hit Streak 23 | 3 16 . 20 21 . . . 23 . . . . . . 6 Robot Miss Streak 2 | 1 2 . . 1 . . . 1 . 1 . . . . . Penetration Max . | . . . . . . . . . . . . . . . . Secondary Targets 2 | . 2 . . . . . . . . . . . . . . Max Gunslinging Chain 1 | . 1 . . . . . . . . . . . . . . Shots Hit Robots 109 | 3 20 . 4 2 21 . . 23 3 5 . . . . 28 Core Hits 69 | 2 10 . 2 1 7 . . 18 . 14 . . . . 15 Critical Kills . | . . . . . . . . . . . . . . . . Critical Parts Destroyed . | . . . . . . . . . . . . . . . . Critical Strikes 2 | . . . . . 1 . . . . . . . . . 1 Sever 1 | . . . . . 1 . . . . . . . . . . Impale 1 | . . . . . . . . . . . . . . . 1 Melee Attacks 84 | . . . . 1 34 . . . 5 12 . . . . 32 Impact 1 | . . . . 1 . . . . . . . . . . . Slashing 51 | . . . . . 34 . . . 5 12 . . . . . Piercing 32 | . . . . . . . . . . . . . . . 32 Sneak Attacks 21 | . . . . . 9 . . . 1 1 . . . . 10 Combat Hostiles . | . . . . . . . . . . . . . . . . Follow-up Attacks . | . . . . . . . . . . . . . . . . Damage Inflicted 6105 | 31 175 . 26 22 1707 . . 1321 249 855 . . . . 1719 Guns 311 | 31 175 . 26 . . . . . . . . . . . 79 Cannons 272 | . . . . . . . . 272 . . . . . . . Explosions 1700 | . . . . . . . . 1049 . 515 . . . . 136 Melee 3800 | . . . . . 1707 . . . 249 340 . . . . 1504 Ramming . | . . . . . . . . . . . . . . . . Kinetic 311 | 31 175 . 26 . . . . . . . . . . . 79 Thermal 566 | . . . . 22 . . . 544 . . . . . . . Explosive 651 | . . . . . . . . . . 515 . . . . 136 Electromagnetic 777 | . . . . . . . . 777 . . . . . . . Impact . | . . . . . . . . . . . . . . . . Slashing 2296 | . . . . . 1707 . . . 249 340 . . . . . Piercing 1504 | . . . . . . . . . . . . . . . 1504 Highest Corruption 5 | . . . . 1 2 2 2 2 . 3 . . . 5 1 Average Corruption 1 | . . . . 1 1 2 2 2 . 2 . . . 3 1 Corruption Purged 6 | . . . . . . . . . . . . . . 5 1 Corruption Blocked 2 | . . . . . . . . . . . . . . . 2 Effects 14 | . . . . 1 4 1 . 4 . 1 . . . 2 1 Message Errors 4 | . . . . . 1 1 . 1 . . . . . 1 . Matter Fused 5 | . . . . 1 1 . . 2 . . . . . 1 . Heat Flow Errors 1 | . . . . . . . . . . 1 . . . . . Energy Discharges 3 | . . . . . 2 . . 1 . . . . . . . Data Loss (minor) 1 | . . . . . . . . . . . . . . . 1 Overload Shots . | . . . . . . . . . . . . . . . . Overflow Damage 980 | . . . . . 489 . . . 117 36 . . . . 338 Projectiles . | . . . . . . . . . . . . . . . . Explosions 18 | . . . . . . . . . . 18 . . . . . Melee 962 | . . . . . 489 . . . 117 18 . . . . 338 Knockbacks . | . . . . . . . . . . . . . . . . Impact . | . . . . . . . . . . . . . . . . Kinetic . | . . . . . . . . . . . . . . . . Secondary . | . . . . . . . . . . . . . . . . Self-Inflicted Damage 55 | . . . . . . . . 6 . 42 . . 7 . . Shots 3 | . . . . . . . . 1 . 1 . . 1 . . Rammed . | . . . . . . . . . . . . . . . . Targets Rammed . | . . . . . . . . . . . . . . . . Kicked . | . . . . . . . . . . . . . . . . Crushed . | . . . . . . . . . . . . . . . . Highest Temperature 476 | . 8 6 10 85 414 . 2 . 363 343 97 303 300 56 476 Average Temperature 145 | . 4 4 5 27 147 . 2 . 176 139 31 134 217 24 161 Received Heat Transfer 388 | . . 30 . . 12 . . 90 . 18 . 9 18 27 184 Effects 29 | . . . . . 11 . . . 6 1 . . 3 . 8 Shutdowns 9 | . . . . . 2 . . . 1 1 . . . . 5 Energy Bleed 3 | . . . . . 3 . . . . . . . . . . Interference 13 | . . . . . 4 . . . 5 . . . 3 . 1 Short Circuit 1 | . . . . . . . . . . . . . . . 1 Damage (minor) 3 | . . . . . 2 . . . . . . . . . 1 Siege Activations . | . . . . . . . . . . . . . . . . Robots Corrupted 1 | . . . . . . . . 1 . . . . . . . Combat Hostiles 1 | . . . . . . . . 1 . . . . . . . Parts Fried 5 | . . . . . . . . 5 . . . . . . . Impact Corruptions . | . . . . . . . . . . . . . . . . Robots Melted . | . . . . . . . . . . . . . . . . Combat Hostiles . | . . . . . . . . . . . . . . . . Parts Melted . | . . . . . . . . . . . . . . . . Heat Transferred 794 | . . . . 74 . . . 720 . . . . . . . Parts Sabotaged . | . . . . . . . . . . . . . . . . Parts Stolen . | . . . . . . . . . . . . . . . . Parts Stripped . | . . . . . . . . . . . . . . . . Power Chain Reactions 5 | . . . . . . . . 5 . . . . . . . Alert | -11 -10 -9 -9 -8 -7 -7 -7 -7 -6 -5 -4 -3 -2 -2 -1 ------- Run | Yrd Mat Mat Min Mat Fac Gar Fac DSF Fac Fac Fac Res Res Tes Acc Peak Influence 551 | 5 163 107 38 36 148 36 16 305 145 482 202 244 205 162 551 Initial 173 | . 2 2 33 4 11 36 13 8 118 52 173 78 102 86 73 Average 142 | 1 78 38 34 25 48 36 13 159 137 190 176 145 122 115 281 Maximum Alert Level 2 | . . . . . . . . 1 . 2 1 1 1 . 2 Low Security (%) 73 | 100 100 100 100 100 100 100 100 52 100 58 93 84 96 100 26 Level 1 21 | . . . . . . . . 47 . 36 6 15 3 . 58 Level 2 4 | . . . . . . . . . . 5 . . . . 14 Level 3 . | . . . . . . . . . . . . . . . . Level 4 . | . . . . . . . . . . . . . . . . Level 5 . | . . . . . . . . . . . . . . . . High Security . | . . . . . . . . . . . . . . . . Max Security . | . . . . . . . . . . . . . . . . Squads Dispatched 15 | . . 2 . . 3 . . 2 . . 1 1 . 1 5 Investigation 3 | . . . . . 2 . . . . . . . . 1 . Extermination 4 | . . . . . 1 . . . . . . . . . 3 Reinforcement 8 | . . 2 . . . . . 2 . . 1 1 . . 2 Assault . | . . . . . . . . . . . . . . . . Garrison . | . . . . . . . . . . . . . . . . Intercept . | . . . . . . . . . . . . . . . . Searches Triggered 1 | . . . . . . . . . . . . . . . 1 Construction Impeded . | . . . . . . . . . . . . . . . . Haulers Reinforced . | . . . . . . . . . . . . . . . . Active Scanning Responses . | . . . . . . . . . . . . . . . . Cargo Convoy Interrupts . | . . . . . . . . . . . . . . . . Stealth | -11 -10 -9 -9 -8 -7 -7 -7 -7 -6 -5 -4 -3 -2 -2 -1 --------- Run | Yrd Mat Mat Min Mat Fac Gar Fac DSF Fac Fac Fac Res Res Tes Acc Distress Signals 5 | . 1 . . . 1 . . . . 1 . . . . 2 Communications Jammed 30 | . . . . . . . . . . 4 . 1 . . 25 Distress Signals 22 | . . . . . . . . . . 4 . 1 . . 17 Times Spotted 187 | . 7 13 2 1 17 . . 22 1 18 2 7 4 8 85 Peak Tracking Total 10 | . 3 8 2 1 6 . . 6 1 10 2 5 4 5 10 Tactical Retreats 45 | . . 1 . 1 5 . . 5 . 4 . . . 2 27 Traps | -11 -10 -9 -9 -8 -7 -7 -7 -7 -6 -5 -4 -3 -2 -2 -1 ------- Run | Yrd Mat Mat Min Mat Fac Gar Fac DSF Fac Fac Fac Res Res Tes Acc Traps Triggered 10 | . . 1 . 1 1 . . 1 . . . . . . 6 Indirectly . | . . . . . . . . . . . . . . . . Trap Hack Attempts . | . . . . . . . . . . . . . . . . Triggered . | . . . . . . . . . . . . . . . . Disarmed . | . . . . . . . . . . . . . . . . Reprogrammed . | . . . . . . . . . . . . . . . . Reused . | . . . . . . . . . . . . . . . . Traps Extracted . | . . . . . . . . . . . . . . . . Installed . | . . . . . . . . . . . . . . . . Triggered . | . . . . . . . . . . . . . . . . Machines | -11 -10 -9 -9 -8 -7 -7 -7 -7 -6 -5 -4 -3 -2 -2 -1 ---------- Run | Yrd Mat Mat Min Mat Fac Gar Fac DSF Fac Fac Fac Res Res Tes Acc Machines Disabled 2 | . . . . . . . . 1 . 1 . . . . . Max in Single Turn 1 | . . . . . . . . 1 . 1 . . . . . Machines Repaired . | . . . . . . . . . . . . . . . . Machines Dismantled . | . . . . . . . . . . . . . . . . Machines Sabotaged . | . . . . . . . . . . . . . . . . Overloaded Fab Kills . | . . . . . . . . . . . . . . . . Hacking | -11 -10 -9 -9 -8 -7 -7 -7 -7 -6 -5 -4 -3 -2 -2 -1 --------- Run | Yrd Mat Mat Min Mat Fac Gar Fac DSF Fac Fac Fac Res Res Tes Acc Machines Accessed 43 | . 7 3 . 4 7 . 1 . . 4 2 1 1 5 8 Terminals 33 | . 7 2 . 2 5 . 1 . . 3 1 1 1 4 6 Fabricators . | . . . . . . . . . . . . . . . . Repair Stations 4 | . . . . 1 1 . . . . 1 . . . . 1 Recycling Units . | . . . . . . . . . . . . . . . . Scanalyzers 4 | . . 1 . 1 . . . . . . 1 . . 1 . Garrison Access 2 | . . . . . 1 . . . . . . . . . 1 Total Hacks 96 | . 18 10 . 11 16 . 1 . . 6 4 1 4 13 12 Successful 66 | . 11 7 . 11 11 . 1 . . 5 3 1 2 8 6 Failed 30 | . 7 3 . . 5 . . . . 1 1 . 2 5 6 Catastrophic 6 | . . . . . 3 . . . . . . . . 1 2 Database Lockouts . | . . . . . . . . . . . . . . . . Manual . | . . . . . . . . . . . . . . . . Terminals 70 | . 18 6 . 3 12 . 1 . . 4 1 1 4 10 10 Fabricators . | . . . . . . . . . . . . . . . . Repair Stations 7 | . . . . 2 2 . . . . 2 . . . . 1 Recycling Units . | . . . . . . . . . . . . . . . . Scanalyzers 16 | . . 4 . 6 . . . . . . 3 . . 3 . Garrison Access 3 | . . . . . 2 . . . . . . . . . 1 Terminal Hacks 46 | . 11 3 . 3 8 . 1 . . 4 1 1 2 6 6 Record 2 | . . . . . 2 . . . . . . . . . . Part Schematic 1 | . . . . . . . . . . 1 . . . . . Prototype ID Bank 2 | . 1 . . 1 . . . . . . . . . . . Open Door 1 | . . . . . . . . . . . . . . . 1 Open DSF 3 | . . . . . 1 . 1 . . 1 . . . . . Branch Access Points 1 | . 1 . . . . . . . . . . . . . . Emergency Access Points 3 | . 1 . . . . . . . . . . . 1 . 1 Fabricator Index 1 | . . . . . . . . . . . . . . 1 . Alert Level 3 | . 2 . . . . . . . . . . . . 1 . Unreport Threat 2 | . . . . 1 1 . . . . . . . . . . Locate Traps 8 | . 3 1 . . . . . . . 1 1 . 1 . 1 Dispatch Records 1 | . . . . . 1 . . . . . . . . . . Maintenance Status 1 | . . . . . . . . . . . . . . 1 . Patrol Status 6 | . 1 1 . 1 1 . . . . . . . . 1 1 Recall Investigation 1 | . . . . . 1 . . . . . . . . . . Zone Layout 10 | . 2 1 . . 1 . . . . 1 . 1 . 2 2 Fabricator Hacks . | . . . . . . . . . . . . . . . . Repair Station Hacks 5 | . . . . 2 2 . . . . 1 . . . . . Scan Component 3 | . . . . 1 1 . . . . 1 . . . . . Repair 2 | . . . . 1 1 . . . . . . . . . . Recycling Unit Hacks . | . . . . . . . . . . . . . . . . Scanalyzer 14 | . . 4 . 6 . . . . . . 2 . . 2 . Insert Component 7 | . . 2 . 3 . . . . . . 1 . . 1 . Analyze 7 | . . 2 . 3 . . . . . . 1 . . 1 . Garrison Access Hacks 1 | . . . . . 1 . . . . . . . . . . Unlock Access 1 | . . . . . 1 . . . . . . . . . . Unauthorized Hacks . | . . . . . . . . . . . . . . . . Terminals . | . . . . . . . . . . . . . . . . Fabricators . | . . . . . . . . . . . . . . . . Repair Stations . | . . . . . . . . . . . . . . . . Recycling Units . | . . . . . . . . . . . . . . . . Scanalyzers . | . . . . . . . . . . . . . . . . Garrison Access . | . . . . . . . . . . . . . . . . Data Cores Recovered 1 | . . . . . 1 . . . . . . . . . . Used 1 | . . . . . 1 . . . . . . . . . . Hacking Detections 32 | . 5 2 . 4 5 . . . . 3 2 1 . 4 6 Full Trace Events 4 | . . . . 1 2 . . . . . . . . 1 . Feedback Events . | . . . . . . . . . . . . . . . . Feedback Blocked . | . . . . . . . . . . . . . . . . Robot Schematics Acquired . | . . . . . . . . . . . . . . . . Robots Built . | . . . . . . . . . . . . . . . . Authchips . | . . . . . . . . . . . . . . . . Time . | . . . . . . . . . . . . . . . . Total Robot Build Rating . | . . . . . . . . . . . . . . . . Part Schematics Acquired 7 | . . 2 . 3 . . . . . 1 1 . . . . Parts Built . | . . . . . . . . . . . . . . . . Authchips . | . . . . . . . . . . . . . . . . Time . | . . . . . . . . . . . . . . . . Total Part Build Rating . | . . . . . . . . . . . . . . . . Parts Repaired 2 | . . . . 1 1 . . . . . . . . . . Time 76 | . . . . 32 44 . . . . . . . . . . Parts Recycled . | . . . . . . . . . . . . . . . . Recycled Matter . | . . . . . . . . . . . . . . . . Retrieved Matter . | . . . . . . . . . . . . . . . . Retrieved Components . | . . . . . . . . . . . . . . . . Parts Scanalyzed 7 | . . 2 . 3 . . . . . . 1 . . 1 . Part Schematics Acquired 6 | . . 2 . 3 . . . . . . 1 . . . . Parts Damaged 1 | . . 1 . . . . . . . . . . . . . Bothacking | -11 -10 -9 -9 -8 -7 -7 -7 -7 -6 -5 -4 -3 -2 -2 -1 ------------ Run | Yrd Mat Mat Min Mat Fac Gar Fac DSF Fac Fac Fac Res Res Tes Acc Used RIF Installer . | . . . . . . . . . . . . . . . . Robots Hacked . | . . . . . . . . . . . . . . . . Non-combat . | . . . . . . . . . . . . . . . . Combat . | . . . . . . . . . . . . . . . . Robot Hacks Applied . | . . . . . . . . . . . . . . . . Relay Couplers Released . | . . . . . . . . . . . . . . . . Fabnet Peak Effective % . | . . . . . . . . . . . . . . . . Robots Rewired . | . . . . . . . . . . . . . . . . Allies Hacked . | . . . . . . . . . . . . . . . . Hacks Repelled . | . . . . . . . . . . . . . . . . Allies | -11 -10 -9 -9 -8 -7 -7 -7 -7 -6 -5 -4 -3 -2 -2 -1 -------- Run | Yrd Mat Mat Min Mat Fac Gar Fac DSF Fac Fac Fac Res Res Tes Acc Total Allies . | . . . . . . . . . . . . . . . . Largest Group . | . . . . . . . . . . . . . . . . Highest-Rated Group . | . . . . . . . . . . . . . . . . Highest-Rated Ally . | . . . . . . . . . . . . . . . . Total Orders . | . . . . . . . . . . . . . . . . Ally Attacks . | . . . . . . . . . . . . . . . . Total Damage . | . . . . . . . . . . . . . . . . Kills . | . . . . . . . . . . . . . . . . Allies Corrupted . | . . . . . . . . . . . . . . . . Allies Melted . | . . . . . . . . . . . . . . . . Intel | -11 -10 -9 -9 -8 -7 -7 -7 -7 -6 -5 -4 -3 -2 -2 -1 ------- Run | Yrd Mat Mat Min Mat Fac Gar Fac DSF Fac Fac Fac Res Res Tes Acc Robot Analysis Total . | . . . . . . . . . . . . . . . . Derelict Logs Recovered . | . . . . . . . . . . . . . . . . Drone Launches . | . . . . . . . . . . . . . . . . Drone Recoveries . | . . . . . . . . . . . . . . . . Exploration | -11 -10 -9 -9 -8 -7 -7 -7 -7 -6 -5 -4 -3 -2 -2 -1 ------------- Run | Yrd Mat Mat Min Mat Fac Gar Fac DSF Fac Fac Fac Res Res Tes Acc Turns Passed 3365 | 73 430 95 43 197 527 28 18 263 136 158 60 120 89 227 901 Spaces Moved 7552 | 45 612 218 129 303 1060 94 57 307 363 437 148 466 285 430 2598 Core 14 | 11 . . . . . . . 3 . . . . . . . Treads 51 | . . . . . . . . 51 . . . . . . . Legs 45 | 34 11 . . . . . . . . . . . . . . Wheels 246 | . 246 . . . . . . . . . . . . . . Hover . | . . . . . . . . . . . . . . . . Flight 7196 | . 355 218 129 303 1060 94 57 253 363 437 148 466 285 430 2598 Fastest Speed 15 | 50 37 28 28 24 21 25 25 25 25 22 21 18 15 22 19 Average Speed 28 | 108 56 31 28 24 24 25 25 54 25 22 28 18 20 22 23 Slowest Speed 450 | 120 120 37 30 30 27 25 25 450 111 25 105 98 25 25 101 Overloaded Moves . | . . . . . . . . . . . . . . . . Propulsion Burnouts . | . . . . . . . . . . . . . . . . Robots Hopped 19 | . 4 . . 1 . . . . . 1 2 2 . 2 7 Cave-ins Triggered . | . . . . . . . . . . . . . . . . Exploration Rate (%) 30 | 5 89 30 26 28 27 26 2 96 8 18 3 13 9 48 58 Regions Visited 15 Branch Regions 2 Pre-discovered Areas . | . . . . . . . . . . . . . . . . Known Exits Taken 13 | 1 1 1 1 1 1 . 1 . 1 1 1 1 1 1 . Unknown Exits Taken . | . . . . . . . . . . . . . . . . Scrap Searched . | . . . . . . . . . . . . . . . . Spaces Dug 41 | . . . . 1 12 . . . . 6 . 13 . . 9 Terrain Destroyed 313 | . 11 . . 1 12 . . 8 . 57 . 28 42 54 100 Melee 28 | . . . . 1 12 . . . . 6 . . . . 9 Projectile . | . . . . . . . . . . . . . . . . AOE 285 | . 11 . . . . . . 8 . 51 . 28 42 54 91 Terrain Rammed . | . . . . . . . . . . . . . . . . Walls Destroyed . | . . . . . . . . . . . . . . . . Machines Disabled . | . . . . . . . . . . . . . . . . Actions | -11 -10 -9 -9 -8 -7 -7 -7 -7 -6 -5 -4 -3 -2 -2 -1 --------- Run | Yrd Mat Mat Min Mat Fac Gar Fac DSF Fac Fac Fac Res Res Tes Acc Total 8548 | 65 674 245 131 395 1264 96 59 385 394 467 163 496 314 559 2841 Wait 331 | . . 20 . 42 87 . . . 7 . . 13 . 89 73 Move 7500 | 44 603 217 128 300 1060 93 56 306 362 434 143 461 284 425 2584 Hop 18 | . 4 . . 1 . . . . . 1 2 2 . 2 6 Pick Up 168 | 12 19 3 . 11 27 . 1 19 5 6 6 6 6 15 32 Fast Attach 4 | . . . . . 2 . . 1 . 1 . . . . . Attach 126 | 7 5 3 1 12 7 . . 18 6 3 5 6 9 12 32 Detach 31 | . . . . 4 2 . . . 2 . 1 2 3 2 15 Swap 59 | . 9 . . 1 22 3 1 1 4 5 3 1 2 2 5 Drop 118 | . 19 2 . 7 23 . 1 18 3 4 3 3 7 10 18 Fire 66 | 2 15 . 2 16 . . . 14 . 1 . 2 3 2 9 Melee 84 | . . . . 1 34 . . . 5 12 . . . . 32 Ram . | . . . . . . . . . . . . . . . . Kick . | . . . . . . . . . . . . . . . . Crush . | . . . . . . . . . . . . . . . . Escape Stasis 43 | . . . . . . . . 8 . . . . . . 35 Rewire . | . . . . . . . . . . . . . . . . Trap . | . . . . . . . . . . . . . . . . Miscellaneous . | . . . . . . . . . . . . . . . . Route ------- -11/Scrapyard -10/Materials (discovered 5 exits: *Mat x3 / *Min x2) -9/Materials -9/Mines -8/Materials -7/Factory (discovered 2 exits: Sto / Gar) -7/Garrison -7/Factory -7/DSF -6/Factory -5/Factory -4/Factory -3/Research -2/Research -2/Testing -1/Access To Epsilon Eridani History --------- Turn | Location | Event 10 | -11/Scrapyard | Identified exit to Materials 10 | -11/Scrapyard | Discovered exit to Materials (range 15) 74 | -11/Scrapyard | Entered Materials 74 | -10/Materials | Evolved 1 slot: Propulsion x1 175 | -10/Materials | Identified exit to Mines 175 | -10/Materials | Discovered exit to Mines (range 7) 227 | -10/Materials | Identified exit to Materials 227 | -10/Materials | Discovered exit to Materials (range 7) 288 | -10/Materials | Discovered exit to Materials (range 17) 323 | -10/Materials | Build established: Hacker-Mutant 482 | -10/Materials | Discovered exit to Materials (range 15) 504 | -10/Materials | Entered another Materials area 504 | -9/Materials | Evolved 2 slots: Propulsion x1, Utility x1 596 | -9/Materials | Identified exit to Mines 596 | -9/Materials | Discovered exit to Mines (range 10) 599 | -9/Materials | Entered Mines 621 | -9/Mines | Identified exit to Materials 621 | -9/Mines | Discovered exit to Materials (range 12) 624 | -9/Mines | Assembled infested the area 642 | -9/Mines | Entered Materials 642 | -8/Materials | Evolved 2 slots: Power x1, Propulsion x1 814 | -8/Materials | Repaired VTOL Module 831 | -8/Materials | Identified exit to Factory 831 | -8/Materials | Discovered exit to Factory (range 13) 839 | -8/Materials | Entered Factory 839 | -7/Factory | Evolved 2 slots: Power x1, Propulsion x1 969 | -7/Factory | Identified exit to Storage 969 | -7/Factory | Discovered exit to Storage (range 17) 1110 | -7/Factory | Repaired Greatsword 1181 | -7/Factory | Build established: Hacker-Sprinter 1366 | -7/Factory | Identified exit to Garrison 1366 | -7/Factory | Entered Garrison 1389 | -7/Garrison | Identified exit to Factory 1389 | -7/Garrison | Discovered exit to Factory (range 14) 1394 | -7/Garrison | Entered Factory 1411 | -7/Factory | Identified exit to DSF 1412 | -7/Factory | Entered DSF 1431 | -7/DSF | Additional patrols routed to DSF 1575 | -7/DSF | Destroyed 7 combat bots 1671 | -7/DSF | Identified exit to Factory 1671 | -7/DSF | Discovered exit to Factory (range 16) 1675 | -7/DSF | Entered Factory 1675 | -6/Factory | Evolved 2 slots: Utility x2 1807 | -6/Factory | Identified exit to Factory 1807 | -6/Factory | Discovered exit to Factory (range 7) 1811 | -6/Factory | Entered another Factory area 1811 | -5/Factory | Evolved 2 slots: Power x1, Propulsion x1 1960 | -5/Factory | Spotted B-75 Beast 1967 | -5/Factory | Identified exit to Factory 1967 | -5/Factory | Discovered exit to Factory (range 9) 1969 | -5/Factory | Entered another Factory area 1969 | -4/Factory | Evolved 2 slots: Utility x2 1984 | -4/Factory | Lost 4 parts (2p1n1w) 2025 | -4/Factory | Identified exit to Research 2025 | -4/Factory | Discovered exit to Research (range 16) 2029 | -4/Factory | Entered Research 2029 | -3/Research | Evolved 2 slots: Power x1, Propulsion x1 2064 | -3/Research | Spotted B-86 Titan 2096 | -3/Research | Spotted B-86 Titan 2147 | -3/Research | Identified exit to Research 2147 | -3/Research | Discovered exit to Research (range 13) 2149 | -3/Research | Entered another Research area 2149 | -2/Research | Evolved 2 slots: Propulsion x1, Utility x1 2167 | -2/Research | Found Prototype Launcher 2168 | -2/Research | Identified Ragnarok Missile Launcher 2189 | -2/Research | Found Fusion Bomb Launcher 2234 | -2/Research | Identified exit to Testing 2234 | -2/Research | Discovered exit to Testing (range 11) 2238 | -2/Research | Entered Testing 2240 | -2/Testing | Found Prototype Reactor 2241 | -2/Testing | Identified Vortex Chain Reactor 2375 | -2/Testing | Found Prototype Device 2376 | -2/Testing | Identified Exp. ECM Suite 2385 | -2/Testing | Found Prototype Device 2389 | -2/Testing | Identified Beam Splitter 2394 | -2/Testing | Spotted Striker 2463 | -2/Testing | Identified exit to Access 2463 | -2/Testing | Discovered exit to Access (range 10) 2465 | -2/Testing | Entered Access 2465 | -1/Access | Evolved 2 slots: Propulsion x1, Utility x1 2564 | -1/Access | Found Gamma Bomb Array 2923 | -1/Access | Spotted B-99 Colossus 3212 | -1/Access | Spotted B-99 Colossus 3262 | -1/Access | Search patrols dispatched 3270 | -1/Access | Lost 7 parts (2p4n1u) 3310 | -1/Access | Spotted B-99 Colossus 3349 | -1/Access | Spotted B-99 Colossus 3364 | -1/Access | Identified exit to Surface 3364 | -1/Access | Discovered exit to Surface (range 6) 3366 | *** | Escaped! Last Messages --------------- 03343_ U-05 Engineer destroyed. 03344_ Door malfunctions. 03345_ Acquired 10 matter. 03347_ Slug penetrates Wall. 03353_ Power failure, Lgt. Quantum Reactor shutdown. 03355_ Sneak attack on K-01 Serf. 03355_ Destroyed Wheel. 03355_ K-01 Serf destroyed. 03357_ Power failure, Mic. Antimatter Reactor shutdown. 03361_ Penetrated by Slug. 03363_ Connecting with Terminal... >>Open(Door) Sealed Barrier opened. 03364_ Power failure, Lgt. Quantum Reactor shutdown. 03364_ The Access Shell folds into the floor. 03364_ EXIT=FOUND: SURFACE [Achievement: Epsilon Run] Map ----- +----------------------------------------------------+ | ?????????????????????????????????????????????????? | | ?????????????????????????????????????????????????? | | ?????????????????????????????????????????????????? | | ?????????????????????????????????????????????????? | | ?????????????????????????????????????????????????? | | ?????????????????????????????????????????????????? | | ?????????????????????????????????????????????????? | | ?????????????????????????????????????????????????? | | ?????????????????????????????????????????????????? | | ??????????????????????????????????????? ????????? | | ?????????????????????????????????????? ????????? | | ?????????????????????????????????????? ????????? | | ?????????????????????????????????????? #????????? | | ?????????????????????????????????????? #????????? | | ?????????????????????????????????????? #????????? | | ?? ??????????????????????????????? #????????? | | ?? #?????????????????????????????? #????????? | | ? #?????????????????????????????? #????????? | | ? #?????????????????????????????? #????????? | | ?? #?????????????????????###?????# #????????? | | ?? #??#######???########## ####### #????????? | | ??# #?? ???" #????????? | | ??# #?? ????" #????????? | | ??# ### ????" #????????? | | ??# ?????" #????????? | | ??+ ??????" "@ #????????? | | ??# ???????" "" #????????? | | ??# ?????????" #????????? | | ??# #??????????" #????????? | | ??# #??????????" """ """ #????????? | | ### #??????????" """T""" #????????? | | #??????????########## ####### #????????? | | #???????????????????###?????# #????????? | | ############################# #????????? | | p p !% #????????? | | ########################+##+#####+#### #????????? | | ??????????????????# + #????????? | | ????????????????+ # #????????? | | ??????????????# """""" # #????????? | | #?????????????# """""" # #????????? | | #?????????????# """""" # #????????? | | #?????????????# """""" # #????????? | | +?????????????# """""" # #????????? | | #?????????????# # #????????? | | #?????????????# # #????????? | | #######?????????????################## #????????? | | ?????????????????????????????????????? #????????? | | ??????????????????????????????????????Y ????????? | | ?????????????????????????????????????? ????????? | | ?????????????????????????????????????? ????????? | +----------------------------------------------------+ Best States ------------- Heat Dissipation 83 Coolant Potential 100 Energy Generation 99 Energy Capacity 530 Matter Stores 300 Matter Capacity 300 Sight Range 20 Robot Scan Range 16 Terrain Scan Range 14 Terrain Scan Density 10 ECM Strength 3 Jamming Range 14 Cloak Strength 2 Additional Mass Support 25 Base Temperature (-) 200 Corruption Block 20 Resistance: KI 35 Resistance: TH 35 Resistance: EX 35 Resistance: EM 35 Resistance: I 35 Resistance: S 35 Resistance: P 35 Evasion (%) 77 Recoil Reduction 6 Offensive Hacking 30 Defensive Hacking 14 Item Schematics ----------------- Sensor Array | -9/Materials | Scanalyzed Rocket Launcher | -9/Materials | Scanalyzed VTOL Module | -8/Materials | Scanalyzed ECM Suite | -8/Materials | Scanalyzed Imp. Ion Engine | -8/Materials | Scanalyzed Adv. Plasma Cannon | -5/Factory | Hacked Xenon Bombardment Thruster | -4/Factory | Scanalyzed Robot Schematics ------------------ None Fabricated ------------ Nothing Alien Tech Used ----------------- None Achievements -------------- Can't Catch Me Dangerous Findings Deadly Force Denied? Dodgeball, But With Guns Epsilon Run More Power To You Part-time Excavator Rockin' Loadout Challenges ------------ None Game ------ Seed ThermicTiamatDatajack Manual? 0 Play Time 02:44:12 Cumulative 22.7 hours Start 2024.04.21 @ 22:42:03 End 2024.04.22 @ 01:34:24 Sessions 1 Manual Loads 0 Difficulty Explorer Special Mode None Game No. 19 Rogue 0 Adventurer 12 Explorer 7 Win Type 0 Total 1 Types 1/0/0/0/0/0/0/0/0 Lore% 8 Gallery% 31 Achievement% 24 Wizard Run 0 Options --------- Layout 1 ASCII 0 Keyboard 0 Movement Mouse Keybinds 0 Fullscreen 1 Font 16/SmallcapsGlow Map View 50x40 Zoom Use 0% Tactical HUD 1 Map Filters NONE Filters NONE Steam SD RUN: 49fed12f-1fa8-4ca7-bb57-7235be414104